bitfinex-derivatives/quotes_SOLF0:USTF0_20251023
["timestamp","ask_amount","ask_price","bid_price","bid_amount"]
[1761200748010,2.94,186.43,186.36,2.74]
[1761200748312,9.11884702,186.42,186.36,2.74]
[1761200748506,9.11884702,186.41,186.36,4.8281]
[1761200748712,2.94,186.43,186.37,2.74]
[1761200748906,9.12022181,186.42,186.37,2.74]
[1761200749206,12.06022181,186.41,186.37,2.74]
[1761200749405,12.06055816,186.4,186.32,2.74]
[1761200749611,5.0081245,186.39,186.32,2.74]
[1761200749809,9.12057355,186.42,186.32,2.74]
[1761200750013,9.12057355,186.41,186.32,2.74]
[1761200750214,5.0081245,186.4,186.32,2.74]
[1761200750412,2.94,186.42,186.35,4.8282]
[1761200750616,9.1220204,186.41,186.35,4.8282]
[1761200750914,5.34969485,186.43,186.35,4.8282]
[1761200750915,7.94922446,186.4,186.35,7.5682]
[1761200751114,2.94,186.4,186.36,2.74]
[1761200751614,2.94,186.4,186.35,4.8282]
[1761200751824,2.94,186.4,186.35,7.5682]
[1761200752010,2.94,186.4,186.31,2.74]
[1761200752316,2.94,186.38,186.31,2.74]
[1761200752516,2.94,186.38,186.31,7.5694]
[1761200752717,4.11356553,186.41,186.32,2.74]
[1761200753014,9.10058892,186.4,186.32,2.74]
[1761200753315,8.28969485,186.42,186.32,2.74]
[1761200753518,9.10086672,186.41,186.32,2.74]
[1761200753711,9.10086672,186.4,186.32,2.74]
[1761200754016,8.28969485,186.42,186.34,2.74]
[1761200754216,9.10088813,186.41,186.34,2.74]
[1761200754510,2.94,186.42,186.34,2.74]
[1761200755212,4.98716914,186.41,186.34,2.74]
[1761200755413,2.94,186.42,186.36,4.828]
[1761200755719,2.94,186.4,186.36,2.74]
[1761200756718,2.94,186.45,186.36,2.74]
[1761200756916,12.04257865,186.44,186.36,2.74]
[1761200757120,2.94,186.42,186.36,2.74]
[1761200757420,2.94,186.49,186.37,2.74]
[1761200757714,9.10317602,186.48,186.41,4.8266]
[1761200757919,9.10317602,186.47,186.42,2.74]
[1761200758114,9.10317602,186.46,186.42,2.74]
[1761200758314,2.94,186.49,186.42,2.74]
[1761200758510,9.10282278,186.48,186.42,2.74]
[1761200758711,2.94,186.49,186.42,2.74]
[1761200759016,9.10180388,186.48,186.44,2.88]
[1761200759207,4.98688171,186.47,186.44,2.88]
[1761200759413,2.94,186.49,186.44,2.88]
[1761200759613,9.09847047,186.48,186.44,2.88]
[1761200759817,2.94,186.49,186.44,2.88]
[1761200760017,9.09846965,186.48,186.44,2.88]
[1761200760217,2.94,186.49,186.44,2.88]
[1761200760420,9.09892141,186.48,186.44,2.88]
[1761200760721,2.94,186.49,186.44,2.88]
[1761200761014,9.09894602,186.48,186.44,2.88]
[1761200761220,2.94,186.49,186.44,2.88]
[1761200761412,4.98623101,186.48,186.44,2.88]
[1761200761606,2.94,186.49,186.44,2.88]
[1761200761812,4.98623043,186.48,186.44,2.88]
[1761200762011,2.94,186.49,186.44,2.88]
[1761200762218,9.09730568,186.48,186.44,2.88]
[1761200762418,2.94,186.49,186.44,2.88]
[1761200762622,9.09626341,186.48,186.44,2.88]
[1761200762809,2.8,186.54,186.44,2.88]
[1761200763014,9.09550917,186.53,186.44,2.88]
[1761200763210,11.89550917,186.52,186.44,2.88]
[1761200763514,9.09550917,186.51,186.38,20.54]
[1761200763718,9.09550917,186.5,186.45,2.88]
[1761200763911,2.8,186.52,186.45,2.88]
[1761200764112,9.09316012,186.51,186.45,2.88]
[1761200764314,2.8,186.55,186.47,2.88]
[1761200764510,9.09074546,186.54,186.47,2.88]
[1761200764813,2.8,186.59,186.47,2.88]
[1761200765021,11.8890674,186.58,186.47,2.88]
[1761200765212,2.8,186.56,186.49,2.88]
[1761200765416,2.8,186.54,186.39,2.88]
[1761200765615,9.0890674,186.53,186.39,2.88]
[1761200765813,9.0890674,186.52,186.39,2.88]
[1761200766015,2.8,186.54,186.38,19.38]
[1761200766214,2.8,186.52,186.39,2.88]
[1761200766413,4.97943053,186.51,186.39,2.88]
[1761200766720,4.09453164,186.51,186.44,7.7058]
[1761200766907,4.09453164,186.51,186.45,2.88]
[1761200767111,2.8,186.52,186.45,2.88]
[1761200767514,2.8,186.5,186.41,7.7065]
[1761200767714,2.8,186.48,186.41,7.7065]
[1761200768221,2.8,186.48,186.42,2.88]
[1761200769818,9.07304598,186.49,186.43,2.88]
[1761200770118,2.8,186.51,186.43,2.88]
[1761200770319,9.07067399,186.5,186.44,4.8259]
[1761200770619,2.8,186.51,186.44,7.7059]
[1761200771121,4.97735914,186.5,186.44,7.7059]
[1761200771420,2.8,186.51,186.44,2.88]
[1761200772013,6.89258421,186.51,186.44,7.706]
[1761200772214,2.8,186.51,186.44,7.706]
[1761200772616,6.89191858,186.51,186.44,7.706]
[1761200772815,2.8,186.51,186.44,7.706]
[1761200773225,7.77613268,186.51,186.44,7.706]
[1761200773523,2.8,186.51,186.44,7.706]
[1761200773823,2.8,186.51,186.45,2.88]
[1761200775116,2.8,186.51,186.45,7.7055]
[1761200775719,9.06431989,186.53,186.47,4.8251]
[1761200775925,2.8,186.55,186.47,7.7051]
[1761200776421,11.86119244,186.55,186.47,7.7051]
[1761200776621,2.8,186.55,186.47,7.7051]
[1761200776824,2.8,186.53,186.47,4.8251]
[1761200777018,6.88906214,186.53,186.47,4.8251]
[1761200777325,2.8,186.53,186.47,4.8251]
[1761200778028,2.8,186.52,186.45,4.8257]
[1761200778328,7.77186551,186.52,186.45,4.8257]
[1761200778531,2.8,186.51,186.44,2.88]
[1761200778718,2.8,186.51,186.4,16.4]
[1761200778719,2.8,186.5,186.4,7.7068]
[1761200778914,2.8,186.48,186.4,7.7068]
[1761200779114,2.8,186.53,186.42,2.88]
[1761200779327,4.9719745,186.52,186.42,2.88]
[1761200779523,2.8,186.57,186.42,2.88]
[1761200779731,9.04637653,186.56,186.42,2.88]
[1761200779918,4.97064821,186.55,186.38,11.24681114]
[1761200780120,2.8,186.56,186.43,2.88]
[1761200781626,2.8,186.54,186.43,2.88]
[1761200781834,2.8,186.53,186.43,2.88]
[1761200783026,2.8,186.53,186.44,4.8259]
[1761200784116,2.8,186.53,186.43,2.88]
[1761200784323,2.91,186.52,186.43,2.88]
[1761200785217,7.90174799,186.52,186.42,4.8263]
[1761200785423,2.91,186.49,186.42,4.8263]
[1761200786533,3.24681114,186.5,186.43,2.73]
[1761200787526,2.91,186.49,186.39,7.5572]
[1761200787720,2.91,186.49,186.4,2.73]
[1761200788128,2.91,186.49,186.4,7.557]
[1761200788328,2.91,186.49,186.4,4.827]
[1761200788531,2.91,186.49,186.4,7.687]
[1761200789229,2.91,186.49,186.41,4.8266]
[1761200789930,2.91,186.49,186.41,7.6866]
[1761200790130,7.90557874,186.49,186.41,7.6866]
[1761200790932,2.91,186.49,186.41,7.6866]
[1761200791131,2.91,186.49,186.42,7.6163]
[1761200791334,2.91,186.49,186.43,2.79]
[1761200792129,2.66,186.53,186.38,2.79]
[1761200792326,2.66,186.52,186.38,2.79]
[1761200792726,1.27515762,186.49,186.41,2.79]
[1761200792922,1.27515762,186.49,186.44,4.8258]
[1761200793131,1.27515762,186.49,186.44,7.6158]
[1761200793529,1.27515762,186.49,186.44,4.8258]
[1761200793733,1.27515762,186.49,186.45,2.79]
[1761200794335,3.93515762,186.49,186.45,2.79]
[1761200794730,1.27515762,186.51,186.42,2.79]
[1761200795036,1.27515762,186.51,186.37,25.7]
[1761200795037,1.27515762,186.56,186.47,2.79]
[1761200795229,2.66,186.57,186.46,1.27515762]
[1761200795437,2.66,186.57,186.49,2.79]
[1761200795631,1.27515762,186.56,186.49,2.79]
[1761200796024,2.66,186.57,186.49,2.79]
[1761200796238,1.27515762,186.58,186.51,2.79]
[1761200796844,4.07781186,186.6,186.52,7.6139]
[1761200797033,8.24617317,186.67,186.53,2.79]
[1761200797231,2.66,186.65,186.53,2.79]
[1761200797532,4.99717972,186.64,186.58,4.8223]
[1761200797730,2.66,186.65,186.59,2.79]
[1761200797929,9.06425384,186.68,186.59,2.79]
[1761200798138,9.06425384,186.67,186.59,2.79]
[1761200798338,4.99259261,186.66,186.59,2.79]
[1761200798535,2.66,186.67,186.6,4.8219]
[1761200798729,2.66,186.67,186.6,7.6119]
[1761200799326,2.66,186.67,186.5,46.9]
[1761200799327,2.66,186.71,186.63,2.79]
[1761200800134,7.6464915,186.71,186.63,2.79]
[1761200800335,2.66,186.71,186.63,2.79]
[1761200801137,4.98068577,186.72,186.65,2.79]
[1761200801335,9.03923288,186.74,186.65,2.79]
[1761200801531,4.98068577,186.73,186.65,2.79]
[1761200801930,4.98068577,186.73,186.67,2.79]
[1761200802239,2.66,186.75,186.67,2.79]
[1761200802434,2.66,186.73,186.63,7.611]
[1761200802634,2.66,186.72,186.63,7.611]
[1761200803034,2.66,186.72,186.64,2.79]
[1761200803435,3.24353378,186.75,186.64,2.79]
[1761200803640,4.9681701,186.74,186.64,2.79]
[1761200804142,2.66,186.73,186.64,2.79]
[1761200804534,4.9681701,186.73,186.64,2.79]
[1761200804739,3.24353378,186.75,186.61,2.79]
[1761200804740,2.66,186.71,186.61,2.79]
[1761200805041,2.66,186.7,186.61,2.79]
[1761200805729,2.66,186.7,186.63,2.79]
[1761200807941,2.66,186.7,186.59,4.8219]
[1761200808240,2.66,186.69,186.6,2.79]
[1761200808642,8.24617317,186.78,186.56,26.86]
[1761200808643,2.66,186.66,186.56,2.79]
[1761200808846,2.66,186.64,186.48,2.79]
[1761200809046,2.66,186.63,186.48,2.79]
[1761200809744,2.66,186.63,186.53,4.8234]
[1761200810153,2.66,186.63,186.52,2.79]
[1761200810340,2.66,186.62,186.52,2.79]
[1761200812046,2.66,186.62,186.53,7.6137]
[1761200812353,2.66,186.62,186.54,2.79]
[1761200817649,2.66,186.62,186.55,2.79]
[1761200818147,3.24353378,186.64,186.47,11.24353378]
[1761200818148,3.24353378,186.64,186.56,4.8227]
[1761200818346,3.24353378,186.64,186.57,2.79]
[1761200818855,1.2733537,186.63,186.57,2.79]
[1761200819358,1.2733537,186.64,186.57,2.79]
[1761200820653,1.2733537,186.62,186.57,2.79]
[1761200821656,1.2733537,186.62,186.54,1.2733537]
[1761200821657,1.2733537,186.6,186.53,2.72]
[1761200821954,1.2733537,186.58,186.53,2.72]
[1761200823252,3.9633537,186.6,186.53,2.72]
[1761200824850,1.2733537,186.56,186.49,49.46]
[1761200825052,2.69,186.53,186.49,49.46]
[1761200825250,5.00263939,186.66,186.49,49.46]
[1761200825251,2.69,186.58,186.5,2.72]
[1761200825456,3.9633537,186.58,186.5,2.72]
[1761200825656,1.2733537,186.56,186.5,2.72]
[1761200828455,3.9633537,186.54,186.49,46.74]
[1761200828962,3.9633537,186.54,186.49,49.46]
[1761200829556,1.2733537,186.54,186.49,46.74]
[1761200829757,2.69,186.51,186.49,46.74]
[1761200830357,2.69,186.51,186.45,2.72]
[1761200830558,2.69,186.51,186.44,1.2733537]
[1761200830957,2.69,186.49,186.42,1.2733537]
[1761200831159,2.69,186.49,186.41,46.7]
[1761200831358,3.9633537,186.48,186.41,46.7]
[1761200831558,2.69,186.47,186.41,46.7]
[1761200834061,2.69,186.47,186.38,2.72]
[1761200834264,2.69,186.47,186.35,4.8283]
[1761200835165,2.69,186.47,186.35,7.5483]
[1761200835359,2.69,186.47,186.36,7.5478]
[1761200835566,2.69,186.47,186.37,2.72]
[1761200835757,5.34700336,186.56,186.37,2.72]
[1761200835758,2.69,186.52,186.37,2.72]
[1761200835961,2.69,186.51,186.42,7.5465]
[1761200836258,2.69,186.51,186.35,2.72]
[1761200836863,2.69,186.5,186.35,2.72]
[1761200837461,2.69,186.5,186.39,4.8271]
[1761200837664,2.69,186.49,186.38,2.72]
[1761200838363,2.69,186.49,186.38,7.5476]
[1761200839069,2.69,186.49,186.39,2.72]
[1761200842075,2.69,186.49,186.41,2.72]
[1761200842972,2.69,186.49,186.34,49.42]
[1761200843273,2.69,186.47,186.34,49.42]
[1761200843466,2.69,186.46,186.34,49.42]
[1761200843770,2.69,186.45,186.34,49.42]
[1761200844673,2.69,186.45,186.35,7.6283]
[1761200844873,2.69,186.45,186.35,2.8]
[1761200847174,2.69,186.45,186.34,46.7]
[1761200847371,2.7,186.42,186.31,2.8]
[1761200847570,16.1,186.43,186.31,7.6291]
[1761200847776,2.7,186.41,186.31,7.6291]
[1761200848574,2.7,186.41,186.27,46.66]
[1761200848875,2.9,186.39,186.27,49.41]
[1761200849066,5.00263939,186.45,186.27,49.41]
[1761200849067,2.9,186.38,186.28,2.75]
[1761200849263,2.9,186.38,186.29,2.75]
[1761200850075,2.9,186.38,186.3,4.8295]
[1761200850269,2.9,186.38,186.28,2.75]
[1761200850776,16.1,186.37,186.24,2.75]
[1761200851077,2.9,186.36,186.24,2.75]
[1761200851479,2.9,186.36,186.22,2.75]
[1761200852771,2.9,186.36,186.28,2.75]
[1761200852971,4.02883997,186.41,186.28,2.75]
[1761200852972,2.9,186.4,186.28,2.75]
[1761200853168,2.9,186.39,186.28,2.75]
[1761200853977,2.9,186.38,186.28,2.75]
[1761200854678,2.9,186.38,186.29,7.5799]
[1761200855781,2.9,186.38,186.29,2.75]
[1761200856667,2.9,186.37,186.29,2.75]
[1761200857578,2.9,186.36,186.29,2.75]
[1761200858377,2.9,186.36,186.3,2.75]
[1761200858581,2.9,186.38,186.3,2.75]
[1761200859778,2.9,186.38,186.32,4.829]
[1761200859977,2.9,186.38,186.3,2.75]
[1761200860377,2.9,186.38,186.3,7.5794]
[1761200860979,2.9,186.38,186.3,2.75]
[1761200861783,2.9,186.38,186.3,7.5794]
[1761200864183,2.9,186.38,186.31,7.5792]
[1761200865184,6.95709571,186.38,186.31,7.5792]
[1761200865487,6.95709571,186.37,186.31,7.5792]
[1761200865688,2.9,186.37,186.31,7.5792]
[1761200865889,2.9,186.37,186.31,4.8292]
[1761200866187,2.9,186.37,186.31,7.5792]
[1761200866586,4.05759598,186.38,186.34,7.5786]
[1761200866885,6.05490194,186.4,186.34,7.5786]
[1761200867089,2.9,186.39,186.34,7.5786]
[1761200867687,2.9,186.39,186.34,4.8286]
[1761200868292,2.9,186.39,186.31,2.75]
[1761200868293,2.9,186.37,186.32,4.8291]
[1761200868592,2.9,186.37,186.33,2.75]
[1761200869183,2.9,186.42,186.34,4.8286]
[1761200869385,2.9,186.4,186.3,2.75]
[1761200869584,2.9,186.38,186.3,2.75]
[1761200869786,6.96919574,186.38,186.3,2.75]
[1761200869985,2.9,186.38,186.3,2.75]
[1761200870186,2.9,186.38,186.32,4.8291]
[1761200870490,1.99500032,186.39,186.32,4.8291]
[1761200870491,2.9,186.36,186.32,4.8291]
[1761200870686,2.9,186.36,186.32,7.5791]
[1761200872194,2.9,186.36,186.3,7.5797]
[1761200872389,2.9,186.36,186.3,4.8297]
[1761200872597,23.09763971,186.41,186.27,2.75]
[1761200872598,2.9,186.4,186.27,2.75]
[1761200872798,4.07808143,186.39,186.3,2.75]
[1761200872989,4.07808143,186.38,186.3,2.75]
[1761200873291,4.08149552,186.37,186.33,2.75]
[1761200873495,2.9,186.4,186.33,2.75]
[1761200873796,6.98149552,186.39,186.33,2.75]
[1761200874096,4.08149552,186.38,186.33,2.75]
[1761200874292,4.08519834,186.37,186.33,2.75]
[1761200874596,2.9,186.39,186.33,7.5787]
[1761200874795,4.08512625,186.38,186.34,2.75]
[1761200874985,4.08512625,186.37,186.34,2.75]
[1761200875184,2.9,186.39,186.34,2.75]
[1761200875488,6.98519779,186.38,186.34,2.75]
[1761200875683,4.08519779,186.37,186.34,2.75]
[1761200875887,4.08519779,186.36,186.34,2.75]
[1761200876088,4.08860094,186.35,186.28,2.75]
[1761200876289,2.9,186.37,186.28,2.75]
[1761200876494,4.09026,186.36,186.28,2.75]
[1761200876798,4.09026,186.35,186.28,2.75]
[1761200877093,6.99026,186.34,186.3,7.5794]
[1761200877399,2.9,186.34,186.3,7.5794]
[1761200878104,2.9,186.32,186.28,2.75]
[1761200878789,4.091825,186.35,186.33,2.76]
[1761200878991,2.73,186.38,186.33,2.76]
[1761200879202,4.09120166,186.37,186.33,2.76]
[1761200879415,4.09120166,186.36,186.33,2.76]
[1761200879704,2.73,186.38,186.33,2.76]
[1761200880000,1.99500032,186.4,186.23,11.65780032]
[1761200880001,2.73,186.36,186.3,4.8296]
[1761200880298,4.09178454,186.35,186.3,4.8296]
[1761200880602,6.82248935,186.34,186.28,2.76]
[1761200880794,2.73,186.32,186.24,2.76]
[1761200881105,2.73,186.3,186.21,2.76]
[1761200881294,8.81748967,186.29,186.21,2.76]
[1761200881606,4.09248935,186.28,186.21,2.76]
[1761200881801,4.72500032,186.29,186.21,2.76]
[1761200882000,4.0939371,186.28,186.21,7.5918]
[1761200882200,4.72500032,186.29,186.21,7.5918]
[1761200882405,4.09292516,186.28,186.21,7.5918]
[1761200882594,4.72500032,186.29,186.22,4.8315]
[1761200882799,4.09401382,186.28,186.22,4.8315]
[1761200883000,4.72500032,186.29,186.22,4.8315]
[1761200883201,4.09401382,186.28,186.22,4.8315]
[1761200883395,4.72500032,186.29,186.22,4.8315]
[1761200883602,2.73,186.29,186.25,2.76]
[1761200883798,1.99500032,186.31,186.25,2.76]
[1761200883998,4.09376858,186.3,186.25,2.76]
[1761200884195,50.11621355,186.39,186.15,16.36]
[1761200884196,2.73,186.35,186.29,2.76]
[1761200884401,6.82300162,186.34,186.29,2.76]
[1761200884700,4.09300162,186.33,186.29,2.76]
[1761200884899,2.73,186.34,186.29,2.76]
[1761200885099,6.99763971,186.38,186.22,1.99500032]
[1761200885100,9.72763971,186.38,186.32,2.76]
[1761200885301,6.82445953,186.37,186.32,2.76]
[1761200885498,2.73,186.41,186.32,2.76]
[1761200885709,4.09519443,186.4,186.32,2.76]
[1761200885904,4.09519443,186.39,186.32,2.76]
[1761200886105,6.82519443,186.38,186.32,2.76]
[1761200886308,2.73,186.39,186.32,2.76]
[1761200886610,4.11199879,186.38,186.32,2.76]
[1761200886811,6.84199879,186.37,186.32,2.76]
[1761200887109,6.84199879,186.36,186.31,4.8292]
[1761200887403,4.11617311,186.35,186.31,7.5892]
[1761200887604,2.73,186.36,186.31,7.5892]
[1761200889111,2.73,186.36,186.31,4.8292]
[1761200889309,16.1,186.39,186.31,4.8292]
[1761200889310,4.1172283,186.35,186.31,7.5892]
[1761200889517,2.73,186.37,186.31,7.5892]
[1761200889820,6.84798797,186.36,186.31,7.5892]
[1761200890007,2.73,186.36,186.31,7.5892]
[1761200890518,2.73,186.36,186.32,2.76]
[1761200890713,2.73,186.39,186.32,2.76]
[1761200890915,6.84877043,186.38,186.32,2.76]
[1761200891113,2.73,186.36,186.32,2.76]
[1761200891318,4.11989552,186.35,186.32,2.76]
[1761200891614,2.73,186.36,186.32,2.76]
[1761200892412,6.85028548,186.35,186.31,4.8292]
[1761200892604,2.73,186.35,186.31,4.8292]
[1761200893011,4.12047047,186.34,186.31,4.8292]
[1761200893318,2.73,186.36,186.31,4.8292]
[1761200893614,2.73,186.34,186.31,4.8292]
[1761200894004,2.73,186.34,186.29,7.5899]
[1761200894205,4.12098747,186.33,186.29,4.8299]
[1761200894411,2.73,186.33,186.29,4.8299]
[1761200894918,4.12103381,186.32,186.26,7.5905]
[1761200895219,2.73,186.33,186.26,2.76]
[1761200895405,4.12092733,186.32,186.26,2.76]
[1761200895609,2.73,186.33,186.26,2.76]
[1761200895914,4.12092706,186.32,186.26,2.76]
[1761200896111,6.85092706,186.31,186.27,4.8302]
[1761200896313,2.73,186.31,186.27,4.8302]
[1761200896509,4.75602048,186.33,186.27,2.76]
[1761200896716,1.27740199,186.34,186.29,2.76]
[1761200896914,2.73,186.35,186.29,2.76]
[1761200897118,4.12045841,186.34,186.29,2.76]
[1761200897313,2.73,186.35,186.29,1.27740199]
[1761200897618,2.73,186.33,186.29,6.10710199]
[1761200897816,2.73,186.33,186.26,2.76]
[1761200898010,20.24591597,186.35,186.27,1.27740199]
[1761200898011,2.73,186.31,186.27,1.27740199]
[1761200898318,2.73,186.31,186.27,4.03740199]
[1761200898617,1.27740199,186.36,186.3,2.76]
[1761200898817,8.88675323,186.35,186.3,2.76]
[1761200899115,2.73,186.37,186.3,2.76]
[1761200899317,13.03685434,186.36,186.3,2.76]
[1761200899515,11.61598845,186.35,186.3,2.76]
[1761200899812,17.37740199,186.38,186.31,4.03740199]
[1761200900018,8.88513148,186.37,186.31,4.03740199]
[1761200900216,8.88513148,186.36,186.32,2.76]
[1761200900404,4.00740199,186.38,186.32,2.76]
[1761200900610,2.73,186.36,186.3,7.5897]
[1761200900808,20.10740199,186.4,186.33,1.27740199]
[1761200901116,12.85518481,186.39,186.33,4.03740199]
[1761200901314,8.88467426,186.38,186.36,2.76]
[1761200901512,6.48555807,186.43,186.36,2.76]
[1761200901513,4.99933868,186.43,186.36,2.76]
[1761200901713,12.85208707,186.42,186.36,2.76]
[1761200901908,8.88249663,186.41,186.37,4.03740199]
[1761200902114,8.88249663,186.4,186.37,4.03740199]
[1761200902314,4.11911535,186.39,186.37,4.03740199]
[1761200902515,6.69898072,186.42,186.37,4.03740199]
[1761200902714,8.94316603,186.41,186.37,4.03740199]
[1761200903013,8.94316603,186.4,186.36,4.8279]
[1761200903219,4.11847702,186.39,186.37,2.76]
[1761200903414,11.52242461,186.42,186.37,2.76]
[1761200903617,11.67188952,186.41,186.35,1.27740199]
[1761200903817,11.67188952,186.4,186.35,4.03740199]
[1761200904012,4.11788378,186.39,186.35,1.27740199]
[1761200904218,3.96841854,186.42,186.36,2.71]
[1761200904414,8.9407724,186.41,186.36,2.71]
[1761200904721,1.27740199,186.45,186.38,2.71]
[1761200904913,8.93945545,186.44,186.38,2.71]
[1761200905114,8.93945545,186.43,186.38,2.71]
[1761200905311,4.11689778,186.42,186.38,2.71]
[1761200905614,4.18740199,186.45,186.4,2.71]
[1761200905615,4.82125177,186.44,186.4,2.71]
[1761200905921,4.11524718,186.43,186.4,2.71]
[1761200906117,4.18740199,186.45,186.4,2.71]
[1761200906318,4.1152472,186.44,186.4,2.71]
[1761200906620,4.18740199,186.45,186.4,2.71]
[1761200906811,4.11348768,186.44,186.4,2.71]
[1761200907011,2.91,186.45,186.4,2.71]
[1761200908012,1.27740199,186.47,186.4,2.71]
[1761200908318,4.11092125,186.46,186.4,2.71]
[1761200908513,6.09230192,186.47,186.4,2.71]
[1761200908713,4.10909855,186.46,186.4,2.71]
[1761200908913,1.27740199,186.45,186.4,2.71]
[1761200909310,4.99933868,186.5,186.4,2.71]
[1761200909311,4.99933868,186.52,186.41,1.27740199]
[1761200909514,4.99933868,186.52,186.43,1.27740199]
[1761200909515,4.80993654,186.51,186.43,1.27740199]
[1761200909721,5.38387547,186.52,186.44,2.86]
[1761200910211,5.38387547,186.52,186.47,4.8253]
[1761200910414,1.27740199,186.54,186.48,2.86]
[1761200914411,1.27740199,186.52,186.48,2.86]
[1761200914620,4.07740199,186.5,186.44,2.86]
[1761200914821,1.27740199,186.49,186.44,2.86]
[1761200915022,2.8,186.48,186.44,2.86]
[1761200915817,1.27740199,186.47,186.44,2.86]
[1761200916019,4.07740199,186.47,186.42,4.8263]
[1761200916219,4.07740199,186.47,186.43,2.86]
[1761200916415,1.27740199,186.49,186.43,2.86]
[1761200917022,1.27740199,186.5,186.43,2.86]
[1761200917427,1.27740199,186.49,186.43,7.6861]
[1761200917622,1.27740199,186.49,186.43,4.8261]
[1761200917926,4.07740199,186.51,186.44,2.86]
[1761200919025,2.8,186.57,186.45,2.86]
[1761200919224,1.27740199,186.54,186.45,1.27740199]
[1761200919419,1.27740199,186.52,186.45,2.86]
[1761200919618,1.27740199,186.52,186.46,7.6853]
[1761200920020,1.27740199,186.52,186.47,2.86]
[1761200920216,2.8,186.54,186.47,7.685]
[1761200920415,4.07740199,186.54,186.48,2.86]
[1761200920927,1.27740199,186.56,186.49,2.86]
[1761200921327,1.27740199,186.56,186.5,4.8244]
[1761200921626,4.07740199,186.56,186.49,2.86]
[1761200922326,4.07740199,186.56,186.5,2.86]
[1761200922921,1.27740199,186.56,186.5,4.8243]
[1761200923321,2.8,186.6,186.5,4.8243]
[1761200923322,1.27740199,186.58,186.51,2.86]
[1761200923732,4.07740199,186.58,186.51,2.86]
[1761200923916,4.07740199,186.58,186.52,2.86]
[1761200924117,1.27740199,186.6,186.53,2.86]
[1761200924618,4.07740199,186.6,186.53,2.86]
[1761200924824,4.07740199,186.56,186.48,1.27740199]
[1761200925026,1.27740199,186.54,186.48,1.27740199]
[1761200925427,1.27740199,186.54,186.47,2.86]
[1761200925618,4.07740199,186.54,186.47,2.86]
[1761200926224,4.07740199,186.52,186.47,7.6852]
[1761200926420,1.27740199,186.5,186.45,2.86]
[1761200926621,4.07740199,186.5,186.45,2.86]
[1761200926831,2.8,186.5,186.45,2.86]
[1761200928132,2.8,186.5,186.43,4.8263]
[1761200928431,2.8,186.5,186.44,2.86]
[1761200928629,3.24660424,186.52,186.44,2.86]
[1761200928833,2.8,186.53,186.45,2.86]
[1761200930027,2.8,186.53,186.45,4.8256]
[1761200930228,2.8,186.53,186.46,2.86]
[1761200933240,2.8,186.53,186.45,4.8256]
[1761200933736,2.8,186.53,186.43,7.6862]
[1761200934434,3.24660424,186.52,186.41,4.8268]
[1761200934638,2.8,186.51,186.41,4.8268]
[1761200935541,2.8,186.51,186.42,2.86]